Cogmind - Beta 17.1 @@@ ROGUE MODE // 2026.09.08 @ 20:29:19 Player: frazz Result: Destroyed by as-40629 with Assembled Rifle Performance ------------- Evolutions (0) 0 Regions Visited (2) 400 Robots Destroyed (8) 40 Value Destroyed (101) 101 Prototype IDs (3) 60 Alien Tech Used (0) 0 Bonus (0) 0 TOTAL SCORE: 601 Bonus ------- None Cogmind --------- Core Integrity 0/250 Matter 300/300 Energy 100/100 System Corruption 11% Temperature Cool (0) Movement Core (100) Ox1 Location -10/Mines Parts ------- > --- POWER (1) -------- (None) > --- PROPULSION (2) --- (None) > --- UTILITY (2) ------ Small Storage Unit > --- WEAPON (2) ------- (None) > --- INVENTORY (8) ---- Light Ion Engine Light Ion Engine Aluminum Leg Wheel Light Assault Rifle Light Assault Rifle Peak State ------------ > --- POWER ------------ Ion Engine > --- PROPULSION ------- Aluminum Leg Aluminum Leg > --- UTILITY ---------- Small Storage Unit Seismic Detector > --- WEAPON ----------- Small Laser Light Assault Rifle > --- INVENTORY -------- Light Ion Engine Light Ion Engine Wheel Light Assault Rifle [Rating: 7] Favorites ----------- Power Ion Engine Engine Ion Engine Propulsion Aluminum Leg Leg Aluminum Leg Utility Small Storage Unit Device Seismic Detector Storage Small Storage Unit Weapon Light Assault Rifle Energy Gun Small Laser Ballistic Gun Light Assault Rifle Build | -11 -10 -10 ------- Run | Yrd Mat Min Slots Evolved . | . . . Power . | . . . Propulsion . | . . . Utility . | . . . Weapon . | . . . Parts Attached 8 | 7 . 1 Power 1 | 1 . . Engine 1 | 1 . . Core . | . . . Reactor . | . . . Propulsion 2 | 2 . . Treads . | . . . Leg 2 | 2 . . Wheel . | . . . Hover . | . . . Flight . | . . . Utility 2 | 2 . . Device 1 | 1 . . Storage 1 | 1 . . Processor . | . . . Hackware . | . . . Protection . | . . . Artifact . | . . . Weapon 3 | 2 . 1 Energy Gun 1 | 1 . . Energy Cannon . | . . . Ballistic Gun 2 | 1 . 1 Ballistic Cannon . | . . . Launcher . | . . . Special Weapon . | . . . Impact Weapon . | . . . Slashing Weapon . | . . . Piercing Weapon . | . . . Special Melee Weapon . | . . . Unidentified Prototypes . | . . . Parts Lost 7 | . . 7 Power 1 | . . 1 Propulsion 2 | . . 2 Utility 1 | . . 1 Weapon 3 | . . 3 Highest Loss Streak 5 | . . 5 To Critical Strikes . | . . . Average Backups 4 | 2 4 6 Power 1 | . 2 2 Propulsion 1 | . 1 2 Utility . | . . . Weapon 1 | . 1 2 Tool/Special . | . . . Unused Backups 6 | . . 6 Power 2 | . . 2 Propulsion 2 | . . 2 Utility . | . . . Weapon 2 | . . 2 Tool/Special . | . . . Average Slot Usage (%) 94 | . 100 85 Engine 13 | . 14 12 Leg 27 | . 28 25 Device 12 | . 14 8 Storage 14 | . 14 14 Energy Gun 12 | . 14 9 Ballistic Gun 14 | . 14 14 Peak Build Rating 7 | 7 7 7 Average Rating 6 | 4 7 5 On Entrance 4 | . 7 7 Avg Prop Armor Cover (%) . | . . . Naked Turns . | . . . Heaviest Build 13 | 13 13 13 Greatest Support 20 | 20 20 20 Greatest Overweight (x) 1 | . . 1 Average Overweight (x) . | . . . Largest Inventory Capacity 8 | 8 8 8 Average Capacity 7 | 6 8 8 Most Carried 7 | 5 5 7 Average Carried 4 | 2 4 6 Final Capacity 8 | 8 8 8 Final Carried 6 | 4 5 6 Class Distribution -------------------- 100% | Mutant Dominant Class ---------------- Mutant | -10/Materials Mutant | -10/Mines Resources | -11 -10 -10 ----------- Run | Yrd Mat Min Matter Collected 302 | 180 49 73 Remotely . | . . . Salvage Created 180 | 49 49 82 Parts 20 | 10 3 7 Haulers Intercepted . | . . . Recyclers Shooed . | . . . Parts Field Recycled . | . . . Retrieved Matter . | . . . Parts Self-Destructed . | . . . Prevented . | . . . Parts Restored . | . . . Kills | -11 -10 -10 ------- Run | Yrd Mat Min Combat Hostiles Destroyed 6 | . 1 5 Guns 6 | . 1 5 Classes Destroyed 5 | 1 2 2 Tunneler 3 | 3 . . Operator 1 | . 1 . Swarmer 3 | . . 3 Grunt 1 | . 1 . Assembled 2 | . . 2 Best Kill Streak 3 | 3 1 3 Combat Bots Only 3 | . 1 3 Max Kills in Single Turn 1 | 1 1 1 Gunslinging . | . . . Exploded . | . . . Melee . | . . . Uniques/NPCs Destroyed . | . . . Combat | -11 -10 -10 -------- Run | Yrd Mat Min Hostile Shots Fired 69 | . 1 68 Missed 14 | . . 14 Hits 55 | . 1 54 Melee 14 | . . 14 Projectile 41 | . 1 40 Damage Taken 807 | . 10 797 Core 253 | . . 253 Absorbed by Shields . | . . . Core Remaining (%) 100 | 100 . . Volleys Fired 51 | 3 3 45 Largest 2 | 2 2 2 Hottest 60 | 60 60 60 Shots Fired 70 | 6 6 58 Gun 70 | 6 6 58 Cannon . | . . . Launcher . | . . . Special . | . . . Kinetic 54 | 3 3 48 Thermal 16 | 3 3 10 Explosive . | . . . Electromagnetic . | . . . Robot Hit Streak 9 | 3 8 9 Robot Miss Streak 6 | . . 6 Penetration Max . | . . . Secondary Targets . | . . . Shots Hit Robots 36 | 3 5 28 Core Hits 17 | 3 4 10 Critical Kills . | . . . Critical Parts Destroyed . | . . . Critical Strikes . | . . . Melee Attacks . | . . . Impact . | . . . Slashing . | . . . Piercing . | . . . Sneak Attacks . | . . . Combat Hostiles . | . . . Follow-up Attacks . | . . . Damage Inflicted 341 | 34 50 257 Guns 337 | 34 50 253 Cannons . | . . . Explosions . | . . . Melee . | . . . Ramming 4 | . . 4 Kinetic 206 | . 16 190 Thermal 131 | 34 34 63 Explosive . | . . . Electromagnetic . | . . . Impact . | . . . Slashing . | . . . Piercing . | . . . Highest Corruption 11 | . . 11 Average Corruption 6 | . . 6 Corruption Purged . | . . . Corruption Blocked . | . . . Effects 3 | . . 3 Message Errors 2 | . . 2 Heat Flow Errors 1 | . . 1 Overload Shots . | . . . Overflow Damage . | . . . Projectiles . | . . . Explosions . | . . . Melee . | . . . Knockbacks . | . . . Impact . | . . . Kinetic . | . . . Secondary . | . . . Self-Inflicted Damage 1 | . . 1 Shots . | . . . Rammed 1 | . . 1 Targets Rammed 2 | . . 2 Kicked 1 | . . 1 Crushed . | . . . Highest Temperature 249 | 40 26 249 Average Temperature 52 | 19 15 62 Received Heat Transfer 126 | . 6 120 Siege Activations . | . . . Martial Activations . | . . . Shielding Activations . | . . . Robots Disrupted . | . . . Combat Hostiles . | . . . Robots Corrupted . | . . . Combat Hostiles . | . . . Parts Fried . | . . . Impact Corruptions . | . . . Robots Melted . | . . . Combat Hostiles . | . . . Parts Melted . | . . . Heat Transferred 300 | 75 75 150 Parts Sabotaged . | . . . Parts Stolen . | . . . Parts Stripped . | . . . Power Chain Reactions . | . . . Alert | -11 -10 -10 ------- Run | Yrd Mat Min Maximum Alert Level . | . . . Low Security (%) 100 | 100 100 100 Level 1 . | . . . Level 2 . | . . . Level 3 . | . . . Level 4 . | . . . Level 5 . | . . . High Security . | . . . Max Security . | . . . Peak Influence 70 | 15 30 70 Initial 3 | . 3 . Average 8 | 1 3 19 Influence Increases 130 | 15 45 70 Destroy 0b10 Robot/C 80 | . 20 60 Destroy 0b10 Robot/NC 20 | 15 5 . Destroy Leader 20 | . 10 10 Successful Hack 10 | . 10 . Influence Decreases 130 | 10 50 70 Entered New Map 2 | . 2 . Time Decay 128 | 10 48 70 Squads Dispatched 1 | . 1 . Investigation . | . . . Extermination . | . . . Reinforcement 1 | . 1 . Assault . | . . . Garrison . | . . . Intercept . | . . . Searches Triggered . | . . . Construction Impeded . | . . . Haulers Reinforced . | . . . Active Scanning Responses . | . . . Cargo Convoy Interrupts . | . . . Stealth | -11 -10 -10 --------- Run | Yrd Mat Min Distress Signals 2 | . 1 1 Communications Jammed . | . . . Distress Signals . | . . . Times Spotted 15 | . 4 11 Peak Tracking Total 5 | . 4 5 Tactical Retreats 2 | . . 2 Traps | -11 -10 -10 ------- Run | Yrd Mat Min Traps Triggered . | . . . Indirectly . | . . . Trap Hack Attempts . | . . . Triggered . | . . . Disarmed . | . . . Reprogrammed . | . . . Reused . | . . . Traps Extracted . | . . . Installed . | . . . Triggered . | . . . Machines | -11 -10 -10 ---------- Run | Yrd Mat Min Machines Disabled . | . . . Max in Single Turn . | . . . Machines Repaired . | . . . Machines Dismantled . | . . . Machines Sabotaged . | . . . Overloaded Fab Kills . | . . . Hacking | -11 -10 -10 --------- Run | Yrd Mat Min Machines Accessed 3 | . 3 . Terminals 2 | . 2 . Fabricators . | . . . Repair Stations . | . . . Recycling Units 1 | . 1 . Scanalyzers . | . . . Garrison Access . | . . . Total Hacks 6 | . 6 . Successful 3 | . 3 . Failed 3 | . 3 . Catastrophic 1 | . 1 . Database Lockouts . | . . . Manual . | . . . Terminals 5 | . 5 . Fabricators . | . . . Repair Stations . | . . . Recycling Units 1 | . 1 . Scanalyzers . | . . . Garrison Access . | . . . Terminal Hacks 2 | . 2 . Prototype ID Bank 2 | . 2 . Fabricator Hacks . | . . . Repair Station Hacks . | . . . Recycling Unit Hacks 1 | . 1 . Retrieve Matter 1 | . 1 . Scanalyzer . | . . . Garrison Access Hacks . | . . . Unauthorized Hacks . | . . . Terminals . | . . . Fabricators . | . . . Repair Stations . | . . . Recycling Units . | . . . Scanalyzers . | . . . Garrison Access . | . . . Data Cores Recovered 1 | . 1 . Used . | . . . Hacking Detections 2 | . 2 . Full Trace Events . | . . . Feedback Events . | . . . Feedback Blocked . | . . . Robot Schematics Acquired . | . . . Robots Built . | . . . Authchips . | . . . Time . | . . . Total Robot Build Rating . | . . . Part Schematics Acquired . | . . . Parts Built . | . . . Authchips . | . . . Time . | . . . Total Part Build Rating . | . . . Part Studies Acquired . | . . . Parts Repaired . | . . . Time . | . . . Parts Recycled . | . . . Recycled Matter . | . . . Retrieved Matter . | . . . Retrieved Components . | . . . Parts Scanalyzed . | . . . Part Schematics Acquired . | . . . Parts Damaged . | . . . Bothacking | -11 -10 -10 ------------ Run | Yrd Mat Min Used RIF Installer . | . . . Robots Hacked . | . . . Non-combat . | . . . Combat . | . . . Robot Hacks Applied . | . . . Relay Couplers Released . | . . . Fabnet Peak Effective % . | . . . Robots Rewired . | . . . Allies Hacked . | . . . Hacks Repelled . | . . . Allies | -11 -10 -10 -------- Run | Yrd Mat Min Total Allies . | . . . Largest Group . | . . . Highest-Rated Group . | . . . Highest-Rated Ally . | . . . Total Orders . | . . . Ally Attacks . | . . . Total Damage . | . . . Kills . | . . . Allies Corrupted . | . . . Allies Melted . | . . . Intel | -11 -10 -10 ------- Run | Yrd Mat Min Active Infowar (turns) 603 | 3 447 153 Seismic 603 | 3 447 153 Robot Analysis Total . | . . . Derelict Logs Recovered . | . . . Drone Launches . | . . . Drone Recoveries . | . . . Exploration | -11 -10 -10 ------------- Run | Yrd Mat Min Turns Passed 797 | 93 447 257 Spaces Moved 372 | 59 181 132 Core 13 | 7 . 6 Treads . | . . . Legs 359 | 52 181 126 Wheels . | . . . Hover . | . . . Flight . | . . . Fastest Speed 50 | 50 120 100 Average Speed 118 | 111 120 119 Slowest Speed 120 | 120 120 120 Overloaded Moves . | . . . Propulsion Burnouts . | . . . Robots Hopped . | . . . Potential Cave-ins . | . . . Cave-ins Triggered . | . . . Exploration Rate (%) 21 | 3 39 23 Regions Visited 2 Branch Regions 1 Pre-discovered Areas . | . . . Known Exits Taken . | . . . Unknown Exits Taken 2 | 1 1 . Scrap Searched . | . . . Spaces Dug . | . . . Terrain Destroyed . | . . . Melee . | . . . Projectile . | . . . AOE . | . . . Terrain Rammed . | . . . Walls Destroyed . | . . . Machines Disabled . | . . . Actions | -11 -10 -10 --------- Run | Yrd Mat Min Total 667 | 80 405 182 Wait 222 | 1 221 . Move 370 | 58 180 132 Hop . | . . . Pick Up 14 | 11 1 2 Fast Attach . | . . . Attach 8 | 7 . 1 Detach . | . . . Swap . | . . . Drop . | . . . Fire 51 | 3 3 45 Melee . | . . . Ram 1 | . . 1 Kick 1 | . . 1 Crush . | . . . Escape Stasis . | . . . Rewire . | . . . Trap . | . . . Miscellaneous . | . . . Route ------- -11/Scrapyard -10/Materials (discovered 2 exits: [*Min] / [*Sub]) -10/Mines History --------- Turn | Location | Event 25 | -11/Scrapyard | Discovered new exit (range 14) 94 | -11/Scrapyard | Entered Materials 95 | -10/Materials | Met a group of wandering Federalists 302 | -10/Materials | Build established: Mutant 361 | -10/Materials | Discovered new exit (range 14) 526 | -10/Materials | Discovered new exit (range 12) 541 | -10/Materials | Entered Mines 556 | -10/Mines | Assembled infested the area 561 | -10/Mines | Assisted by a Guerilla fighting off Assembled 641 | -10/Mines | Found a damaged Exp. Sensor Array with a note attached 727 | -10/Mines | Core integrity fell below 50% 753 | -10/Mines | System corruption reached 10% 772 | -10/Mines | Core integrity fell below 20% 798 | -10/Mines | Destroyed by as-40629 with Assembled Rifle Last Messages --------------- 3TGRW7E1BE#9>C#NQXDRVQ0 Knocked back. Aluminum Leg destroyed. Lgt. Assault Rifle destroyed. System corrupted by crushing effect (+3). Destroyed Asb. Hover Unit. Kicked as-77069. Ion Engine destroyed. System corrupted by crushing effect (+1). as-77069 destroyed. Acquired 15 matter. System corrupted: Heat flow error (+254). Aluminum Leg destroyed. as-97929 destroyed. Lgt. Assault Rifle destroyed. Slammed into as-40629. Acquired 1 matter. Map ----- +----------------------------------------------------+ | ?????????????????????????????????????????????????? | | ?????????????????????????????????????????????????? | | ?????????????????????????????????????????????????? | | ?????????????????????????????????????????????????? | | ?????????????????????????????????????????????????? | | ?????????????????????????????????????????????????? | | ?????????????????????????????????????????????????? | | ?????????????????????????????????????????????????? | | ?????????????????????????????????????????????????? | | ?????????????????????????????????????????????????? | | ?????????????????????????????????????????????????? | | ?????????????????????????????????????????????????? | | ???????????????????????????????? ????????????????? | | ??????????????????????????????? ????????????????? | | ??????????????????????????????? ????????????????? | | ?????????????????????????????? ?????????????????? | | ?????????????????????????????? ?????????????????? | | ????????????????????????????? ??????????????????? | | ????????????????????????????? ???????????????????? | | ???????????????????????????? ???????????????????? | | ???????????????????????????? ????????????????????? | | ??????????????????????????? #????????????????????? | | ??????????????????????????? #????????????????????? | | ?????????????????????????? #????????????????????? | | ??????????????????######## #????????????????????? | | ??????????????????# @a #????????????????????? | | ??????????????????# ####### #????????????????????? | | ??????????????????# #????????????????????????????? | | ??????????????????# #????????????????????????????? | | ?????????????????## #????????????????????????????? | | ????????????????## ####?????????????????????????? | | ?????????####??##%% # #####?#???????????????????? | | ######??## #### # #%# ##### #??????????? | | #### ## %]% %!!* #??????????? | | %%%==]!%%" #??????????? | | ### ##!%! ### #???????????? | | #?# # ! ##???????????????????? | | #?# < # #???????????????????? | | #?# ## ### ## #### ########??????????????? | | #?## ######?# #####??# #??????????????? | | ???## ##??????# #??????######## #??????????????? | | ????#####?####### #?????????????# #??????????????? | | ??????????# #????????????## #??????????????? | | ??????????# ##### #??????????### ##?????????????? | | ??????????# #???# ############ [= ##????????????? | | ??????????# #???# *= #????????????? | | ########### #???############## = #????????????? | | #????????????????## #????????????? | | #############?????????????????### #???????????? | | ????????????????????????????????## #??????????? | +----------------------------------------------------+ Best States ------------- Heat Dissipation 25 Energy Generation 10 Energy Capacity 250 Matter Stores 300 Matter Capacity 300 Sight Range 16 Terrain Scan Density 10 Evasion (%) 55 Item Schematics ----------------- None Robot Schematics ------------------ None Fabricated ------------ Nothing Repaired ---------- Nothing Studied --------- None Alien Tech Used ----------------- None Achievements -------------- None Challenges ------------ None Game ------ Seed TargetTargetProjector Manual? 0 Play Time 00:07:28 Cumulative 20.9 hours Start 2026.09.08 @ 20:23:37 End 2026.09.08 @ 20:29:19 Sessions 1 Manual Loads 0 Difficulty Rogue Special Mode None Game No. 35 Rogue 33 Adventurer 2 Explorer 0 Win Type - Total 0 Types 0/0/0/0/0/0/0/0/0/0 Lore% 15 Gallery% 20 Achievement% 18 Wizard Run 0 Options --------- Layout 1 ASCII 1 Keyboard 0 Movement Numpad Keybinds 0 Fullscreen 2 Font 24/Smallcaps Map View 50x35 Zoom Use 0% Tactical HUD 0 Map Filters NONE Filters NONE Steam 1 RUN: 8e809404-1898-4d62-b4a8-741faabc383e